Cogmind - Beta 17 @@@ ROGUE MODE // 2026.06.30 @ 04:04:54 Player: Lolterzard Result: Self-destructed Performance ------------- Evolutions (5) 2500 Regions Visited (7) 1400 Robots Destroyed (197) 985 Value Destroyed (5348) 5348 Prototype IDs (3) 60 Alien Tech Used (0) 0 Bonus (-699) -699 TOTAL SCORE: 9594 Bonus ------- Friendly Fire -699 Cogmind --------- Core Integrity 740/1000 Matter 44/300 Energy 100/100 System Corruption 0% Temperature Cool (9) Movement Core (700) Ox13 Location -5/Factory Parts ------- > --- POWER (2) -------- (None) > --- PROPULSION (6) --- (None) > --- UTILITY (6) ------ High-capacity Storage Unit Improved Utility Shielding > --- WEAPON (3) ------- (None) > --- INVENTORY (20) --- F-cell Engine Improved Cooling System Improved Utility Shielding Improved Utility Shielding Improved Utility Shielding Medium Armor Plating Improved Medium Armor Plating Improved Medium Armor Plating Improved Medium Armor Plating Flak Cannon Flak Cannon Flak Cannon Advanced Assault Cannon Advanced Assault Cannon Magnetic Acceleration Cannon Improved Grenade Launcher Missile Launcher Peak State ------------ > --- POWER ------------ F-cell Engine F-cell Engine > --- PROPULSION ------- Medium Treads Medium Treads Medium Treads Medium Treads Medium Treads Medium Treads > --- UTILITY ---------- High-capacity Storage Unit Improved Utility Shielding Improved Weapon Shielding High-powered Tractor Beam > --- WEAPON ----------- Flak Cannon Flak Cannon Flak Cannon > --- INVENTORY -------- F-cell Engine F-cell Engine Improved Cooling System Improved Power Shielding Improved Utility Shielding Improved Utility Shielding Improved Utility Shielding Improved Weapon Shielding Improved Weapon Shielding Medium Armor Plating Improved Medium Armor Plating Improved Medium Armor Plating Improved Medium Armor Plating Improved Medium Armor Plating Assault Cannon Flak Cannon Flak Cannon Flak Cannon Improved Grenade Launcher Missile Launcher [Rating: 62] Favorites ----------- Power F-cell Engine Engine F-cell Engine Propulsion Medium Treads Treads Medium Treads Leg Aluminum Leg Wheel Wheel Hover Unit Airjet Utility High-capacity Storage Unit Device High-powered Tractor Beam Storage High-capacity Storage Unit Protection Improved Utility Shielding Weapon Flak Cannon Ballistic Gun Assault Rifle Ballistic Cannon Flak Cannon Launcher Mini Grenade Launcher Build | -11 -10 -9 -9 -8 -7 -6 -5 ------- Run | Yrd Mat Mat Min Mat Fac Fac Fac Slots Evolved 10 | . . 2 . 2 2 2 2 Power 1 | . . . . . 1 . . Propulsion 4 | . . 2 . 2 . . . Utility 4 | . . . . . 1 1 2 Weapon 1 | . . . . . . 1 . Parts Attached 98 | 8 7 23 1 31 12 12 4 Power 14 | 1 1 3 . 3 1 5 . Engine 14 | 1 1 3 . 3 1 5 . Core . | . . . . . . . . Reactor . | . . . . . . . . Propulsion 38 | 2 3 11 . 14 8 . . Treads 21 | 2 3 2 . 6 8 . . Leg 6 | . . . . 6 . . . Wheel 1 | . . 1 . . . . . Hover 10 | . . 8 . 2 . . . Flight . | . . . . . . . . Utility 21 | 3 1 3 1 4 3 5 1 Device 4 | 2 . 1 . . 1 . . Storage 4 | 1 1 1 . . 1 . . Processor . | . . . . . . . . Hackware . | . . . . . . . . Protection 13 | . . 1 1 4 1 5 1 Artifact . | . . . . . . . . Weapon 25 | 2 2 6 . 10 . 2 3 Energy Gun . | . . . . . . . . Energy Cannon . | . . . . . . . . Ballistic Gun 6 | 2 . 1 . 3 . . . Ballistic Cannon 17 | . 2 4 . 6 . 2 3 Launcher 2 | . . 1 . 1 . . . Special Weapon . | . . . . . . . . Impact Weapon . | . . . . . . . . Slashing Weapon . | . . . . . . . . Piercing Weapon . | . . . . . . . . Special Melee Weapon . | . . . . . . . . Unidentified Prototypes 3 | . . 2 . . . 1 . Parts Lost 58 | . 2 13 . 23 . 7 13 Power 6 | . 1 1 . 1 . 1 2 Propulsion 26 | . 1 5 . 14 . 4 2 Utility 9 | . . 2 . 2 . 2 3 Weapon 17 | . . 5 . 6 . . 6 Highest Loss Streak 13 | . 1 6 . 4 . 2 13 To Critical Strikes . | . . . . . . . . Average Backups 15 | 2 9 9 14 19 19 19 19 Power 1 | . . 1 2 3 2 1 1 Propulsion . | 1 1 . 6 . . . . Utility 8 | . 3 5 5 12 11 11 8 Weapon 4 | . 3 2 1 3 6 6 10 Tool/Special . | . . . . . . . . Unused Backups 27 | . 5 . . 6 3 3 10 Power 2 | . 1 . . . . . 1 Propulsion 2 | . 2 . . . . . . Utility 18 | . 1 . . 6 3 2 6 Weapon 5 | . 1 . . . . 1 3 Tool/Special . | . . . . . . . . Average Slot Usage (%) 85 | . 98 73 100 84 89 92 64 Engine 10 | . 13 10 11 8 7 11 10 Treads 23 | . 27 13 . 19 40 34 9 Leg 2 | . . . . 6 2 . . Hover 5 | . . 4 44 14 . . . Device 6 | . 13 10 1 . 3 6 4 Storage 9 | . 14 11 11 9 7 6 5 Protection 6 | . . . 9 8 10 12 15 Ballistic Gun 6 | . 26 1 . 8 . . . Ballistic Cannon 14 | . 1 20 22 9 15 19 15 Peak Build Rating 62 | 7 8 21 21 28 48 62 50 Average Rating 25 | 5 7 9 20 21 41 54 46 On Entrance 21 | . 7 8 21 20 25 48 46 Avg Prop Armor Cover (%) 7 | 13 10 5 . 7 5 . . Naked Turns . | . . . . . . . . Heaviest Build 94 | 13 22 55 57 63 72 87 94 Greatest Support 168 | 40 40 80 32 125 168 168 56 Greatest Overweight (x) 29 | 3 . 18 1 2 22 1 29 Average Overweight (x) . | 1 . 4 1 . . . 1 Largest Inventory Capacity 20 | 8 10 20 20 20 20 20 20 Average Capacity 18 | 7 9 19 20 20 20 20 20 Most Carried 20 | 6 10 15 15 20 20 20 20 Average Carried 15 | 2 9 9 14 19 19 19 19 Final Capacity 20 | 8 10 20 20 20 20 20 20 Final Carried 20 | 6 10 15 14 20 20 20 17 Class Distribution -------------------- 57% | Mutant 23% | Tank 18% | Scavenger-Mutant Dominant Class ---------------- Mutant | -10/Materials Mutant | -9/Materials Mutant | -9/Mines Mutant | -8/Materials Mutant | -7/Factory Tank | -6/Factory Tank | -5/Factory Resources | -11 -10 -9 -9 -8 -7 -6 -5 ----------- Run | Yrd Mat Mat Min Mat Fac Fac Fac Matter Collected 5505 | 220 512 973 101 1719 275 1590 115 Remotely 2222 | . . 300 . . 275 1532 115 Salvage Created 5859 | 110 593 1120 88 2002 409 1537 . Parts 324 | 11 40 74 7 107 35 50 . Haulers Intercepted 14 | . 1 4 . 5 1 3 . Recyclers Shooed 15 | . 1 3 . 4 1 6 . Parts Field Recycled . | . . . . . . . . Retrieved Matter . | . . . . . . . . Parts Self-Destructed . | . . . . . . . . Prevented . | . . . . . . . . Parts Restored . | . . . . . . . . Kills | -11 -10 -9 -9 -8 -7 -6 -5 ------- Run | Yrd Mat Mat Min Mat Fac Fac Fac Combat Hostiles Destroyed 113 | . 15 24 2 38 7 27 . Melee 4 | . . . . . . 4 . Guns 37 | . 15 5 . 17 . . . Cannons 69 | . . 19 2 21 4 23 . AOE 3 | . . . . . 3 . . Classes Destroyed 15 | 2 5 4 . 3 1 . . Worker 26 | . 1 2 . 3 6 14 . Builder 8 | . . 1 1 1 4 1 . Tunneler 4 | 3 . . . . . 1 . Hauler 14 | . 1 4 . 5 1 3 . Recycler 16 | 1 . 4 . 3 1 7 . Mechanic 1 | . . . . 1 . . . Operator 2 | . . 2 . . . . . Watcher 10 | . 2 4 . 3 1 . . Swarmer 19 | . 6 9 . . . 4 . Grunt 60 | . 9 10 2 23 3 13 . Brawler 4 | . . 1 . 2 . 1 . Duelist 3 | . . . . 2 . 1 . Sentry 19 | . . 4 . 10 2 3 . Hunter 1 | . . . . 1 . . . Programmer 7 | . . . . . 2 5 . Thug 3 | . . . . . 3 . . Best Kill Streak 13 | 3 3 10 2 6 13 6 . Combat Bots Only 7 | . 3 7 2 5 3 4 . Max Kills in Single Turn 6 | 1 2 2 1 2 6 2 . Gunslinging 1 | . 1 . . 1 . . . Exploded 2 | . . . . . 2 . . Melee 1 | . . . . . . 1 . Uniques/NPCs Destroyed . | . . . . . . . . Combat | -11 -10 -9 -9 -8 -7 -6 -5 -------- Run | Yrd Mat Mat Min Mat Fac Fac Fac Hostile Shots Fired 1031 | . 84 271 3 291 68 192 122 Missed 303 | . 24 75 1 79 30 61 33 Hits 728 | . 60 196 2 212 38 131 89 Melee 16 | . . . . 6 . . 10 Projectile 712 | . 60 196 2 206 38 131 79 Critical Strikes 26 | . 1 4 . 15 1 4 1 Actively Blocked 1 | . . . . . . 1 . Damage Taken 10125 | . 707 1902 27 3365 576 1945 1603 Core 1441 | . 111 381 . 416 82 191 260 Absorbed by Shields . | . . . . . . . . Redirected to Shielding 516 | . . . . . 15 339 162 Regen/Repaired (Parts) 14 | . 14 . . . . . . Core Remaining (%) 58 | 100 55 . 4 24 88 77 . Volleys Fired 483 | 8 59 108 5 180 25 91 7 Largest 3 | 2 2 2 2 2 2 3 3 Hottest 120 | 40 40 60 60 74 74 111 120 Shots Fired 1044 | 16 118 214 10 347 50 268 21 Gun 324 | 16 118 36 . 154 . . . Cannon 717 | . . 177 10 192 50 267 21 Launcher 3 | . . 1 . 1 . 1 . Special . | . . . . . . . . Kinetic 1041 | 16 118 213 10 346 50 267 21 Thermal . | . . . . . . . . Explosive 3 | . . 1 . 1 . 1 . Electromagnetic . | . . . . . . . . Robot Hit Streak 19 | 4 9 15 6 19 10 16 5 Robot Miss Streak 19 | 2 4 8 1 9 8 19 7 Penetration Max . | . . . . . . . . Secondary Targets 8 | . 6 . . 2 . . . Max Gunslinging Chain 1 | . 1 . . 1 . . . Shots Hit Robots 706 | 9 61 113 7 239 46 212 19 Core Hits 538 | 5 28 53 4 126 51 258 13 Critical Kills 1 | . 1 . . . . . . Critical Parts Destroyed . | . . . . . . . . Critical Strikes 10 | . 1 4 . 5 . . . Destroy 1 | . 1 . . . . . . Blast 9 | . . 4 . 5 . . . Melee Attacks . | . . . . . . . . Impact . | . . . . . . . . Slashing . | . . . . . . . . Piercing . | . . . . . . . . Sneak Attacks . | . . . . . . . . Combat Hostiles . | . . . . . . . . Follow-up Attacks . | . . . . . . . . Damage Inflicted 14681 | 118 779 2169 126 4652 2231 4304 302 Guns 3102 | 118 779 363 . 1842 . . . Cannons 9895 | . . 1805 126 2797 743 4123 301 Explosions 1531 | . . . . . 1481 50 . Melee . | . . . . . . . . Ramming 153 | . . 1 . 13 7 131 1 Kinetic 12997 | 118 779 2168 126 4639 743 4123 301 Thermal . | . . . . . . . . Explosive 1531 | . . . . . 1481 50 . Electromagnetic . | . . . . . . . . Impact . | . . . . . . . . Slashing . | . . . . . . . . Piercing . | . . . . . . . . Highest Corruption 7 | . . . . . . 7 . Average Corruption 3 | . . . . . . 3 . Corruption Purged . | . . . . . . . . Corruption Blocked . | . . . . . . . . Effects 30 | . . . . . . 30 . Message Errors 9 | . . . . . . 9 . Matter Fused 4 | . . . . . . 4 . Heat Flow Errors 7 | . . . . . . 7 . Energy Discharges 7 | . . . . . . 7 . Data Loss (minor) 1 | . . . . . . 1 . Data Loss (major) 1 | . . . . . . 1 . Weapon Failures 1 | . . . . . . 1 . Overload Shots . | . . . . . . . . Overflow Damage 299 | . . 9 . 20 230 40 . Projectiles 31 | . . 9 . 20 . 2 . Explosions 268 | . . . . . 230 38 . Melee . | . . . . . . . . Knockbacks 179 | . . 18 . 45 16 94 6 Impact . | . . . . . . . . Kinetic 164 | . . 16 . 41 15 86 6 Secondary 15 | . . 2 . 4 1 8 . Self-Inflicted Damage 234 | . . . . . 52 182 . Shots 4 | . . . . . 1 3 . Rammed 18 | . . 2 . 2 1 11 2 Targets Rammed 24 | . . 2 . 2 1 17 2 Kicked . | . . . . . . . . Crushed 6 | . . . . . . 6 . Highest Temperature 374 | . 24 120 33 288 19 374 126 Average Temperature 71 | . 14 41 13 48 6 100 53 Received Heat Transfer 3384 | . 189 513 15 1737 159 528 243 Effects 7 | . . . . . . 7 . Shutdowns 1 | . . . . . . 1 . Energy Bleed 1 | . . . . . . 1 . Interference 5 | . . . . . . 5 . Siege Activations . | . . . . . . . . Martial Activations . | . . . . . . . . Shielding Activations . | . . . . . . . . Robots Disrupted . | . . . . . . . . Combat Hostiles . | . . . . . . . . Robots Corrupted . | . . . . . . . . Combat Hostiles . | . . . . . . . . Parts Fried . | . . . . . . . . Impact Corruptions . | . . . . . . . . Robots Melted . | . . . . . . . . Combat Hostiles . | . . . . . . . . Parts Melted . | . . . . . . . . Heat Transferred . | . . . . . . . . Parts Sabotaged . | . . . . . . . . Parts Stolen . | . . . . . . . . Parts Stripped . | . . . . . . . . Power Chain Reactions . | . . . . . . . . Alert | -11 -10 -9 -9 -8 -7 -6 -5 ------- Run | Yrd Mat Mat Min Mat Fac Fac Fac Maximum Alert Level 2 | . . 1 . 1 1 2 . Low Security (%) 57 | 100 100 33 100 56 42 53 100 Level 1 41 | . . 66 . 43 57 43 . Level 2 . | . . . . . . 2 . Level 3 . | . . . . . . . . Level 4 . | . . . . . . . . Level 5 . | . . . . . . . . High Security . | . . . . . . . . Max Security . | . . . . . . . . Peak Influence 404 | 10 77 370 125 373 343 404 194 Initial 194 | . . . 85 27 166 156 194 Average 154 | . 25 187 94 163 207 188 123 Influence Increases 4038 | 20 428 856 55 1180 523 976 . Destroy 0b10 Robot/C 2260 | . 300 480 40 760 140 540 . Destroy 0b10 Robot/NC 405 | 20 20 85 5 80 65 130 . Destroy Leader 598 | . 86 116 10 206 54 126 . Successful Hack 49 | . 7 21 . 14 5 2 . Disable Machine 345 | . 15 60 . . 210 60 . Destroy Structure 156 | . . 19 . 30 49 58 . Lose Combat Pursuer 225 | . . 75 . 90 . 60 . Influence Decreases 4038 | 20 428 637 204 883 569 899 398 Entered New Map 747 | . . . 134 43 201 165 204 Time Decay 2659 | 20 411 507 70 620 368 543 120 Lost Part 511 | . 17 130 . 220 . 70 74 Purge Threat 121 | . . . . . . 121 . Squads Dispatched 24 | . 4 1 . 6 4 8 1 Investigation 2 | . . . . 1 . 1 . Extermination 6 | . . . . . 2 4 . Reinforcement 10 | . 4 1 . 2 1 2 . Assault . | . . . . . . . . Garrison 6 | . . . . 3 1 1 1 Intercept . | . . . . . . . . Searches Triggered . | . . . . . . . . Construction Impeded . | . . . . . . . . Haulers Reinforced 2 | . . . . . . 2 . Active Scanning Responses . | . . . . . . . . Cargo Convoy Interrupts . | . . . . . . . . Stealth | -11 -10 -9 -9 -8 -7 -6 -5 --------- Run | Yrd Mat Mat Min Mat Fac Fac Fac Distress Signals 10 | . 1 3 . 4 . 2 . Communications Jammed . | . . . . . . . . Distress Signals . | . . . . . . . . Times Spotted 175 | . 22 41 2 58 9 35 8 Peak Tracking Total 8 | . 3 8 2 7 3 7 7 Tactical Retreats 10 | . . 3 . 5 . 2 . Traps | -11 -10 -9 -9 -8 -7 -6 -5 ------- Run | Yrd Mat Mat Min Mat Fac Fac Fac Traps Triggered 6 | . 2 . . 1 2 1 . Indirectly . | . . . . . . . . Trap Hack Attempts . | . . . . . . . . Triggered . | . . . . . . . . Disarmed . | . . . . . . . . Reprogrammed . | . . . . . . . . Reused . | . . . . . . . . Traps Extracted . | . . . . . . . . Installed . | . . . . . . . . Triggered . | . . . . . . . . Machines | -11 -10 -9 -9 -8 -7 -6 -5 ---------- Run | Yrd Mat Mat Min Mat Fac Fac Fac Machines Disabled 23 | . 1 4 . . 14 4 . Max in Single Turn 4 | . 1 1 . . 4 2 . Machines Repaired . | . . . . . . . . Machines Dismantled . | . . . . . . . . Machines Sabotaged . | . . . . . . . . Overloaded Fab Kills . | . . . . . . . . Hacking | -11 -10 -9 -9 -8 -7 -6 -5 --------- Run | Yrd Mat Mat Min Mat Fac Fac Fac Machines Accessed 20 | . 2 6 . 6 1 5 . Terminals 12 | . 1 5 . 3 1 2 . Fabricators 1 | . . . . . . 1 . Repair Stations 4 | . 1 1 . 1 . 1 . Recycling Units 1 | . . . . 1 . . . Scanalyzers 2 | . . . . 1 . 1 . Garrison Access . | . . . . . . . . Total Hacks 47 | . 6 17 . 14 1 9 . Successful 22 | . 3 7 . 8 1 3 . Failed 25 | . 3 10 . 6 . 6 . Catastrophic 2 | . . 1 . 1 . . . Database Lockouts . | . . . . . . . . Manual . | . . . . . . . . Terminals 23 | . 2 12 . 5 1 3 . Fabricators 1 | . . . . . . 1 . Repair Stations 14 | . 4 5 . 2 . 3 . Recycling Units 4 | . . . . 4 . . . Scanalyzers 5 | . . . . 3 . 2 . Garrison Access . | . . . . . . . . Terminal Hacks 13 | . 1 6 . 3 1 2 . Open DSF 1 | . . . . . 1 . . Recycling Unit Index 1 | . . 1 . . . . . Alert Level 2 | . . 1 . . . 1 . Unreport Threat 1 | . . . . . . 1 . Transport Status 1 | . . 1 . . . . . Hauler Manifests 2 | . 1 1 . . . . . Registered Components 2 | . . 1 . 1 . . . Zone Layout 3 | . . 1 . 2 . . . Fabricator Hacks . | . . . . . . . . Repair Station Hacks 5 | . 2 1 . 1 . 1 . Scan Component 4 | . 1 1 . 1 . 1 . Repair 1 | . 1 . . . . . . Recycling Unit Hacks 2 | . . . . 2 . . . Retrieve Components 2 | . . . . 2 . . . Scanalyzer 2 | . . . . 2 . . . Retrieve Study 2 | . . . . 2 . . . Garrison Access Hacks . | . . . . . . . . Unauthorized Hacks . | . . . . . . . . Terminals . | . . . . . . . . Fabricators . | . . . . . . . . Repair Stations . | . . . . . . . . Recycling Units . | . . . . . . . . Scanalyzers . | . . . . . . . . Garrison Access . | . . . . . . . . Data Cores Recovered . | . . . . . . . . Used . | . . . . . . . . Hacking Detections 14 | . 2 6 . 2 . 4 . Full Trace Events 4 | . 1 1 . 1 . 1 . Feedback Events . | . . . . . . . . Feedback Blocked . | . . . . . . . . Robot Schematics Acquired . | . . . . . . . . Robots Built . | . . . . . . . . Authchips . | . . . . . . . . Time . | . . . . . . . . Total Robot Build Rating . | . . . . . . . . Part Schematics Acquired . | . . . . . . . . Parts Built . | . . . . . . . . Authchips . | . . . . . . . . Time . | . . . . . . . . Total Part Build Rating . | . . . . . . . . Part Studies Acquired 2 | . . . . 2 . . . Parts Repaired 1 | . 1 . . . . . . Time 26 | . 26 . . . . . . Parts Recycled . | . . . . . . . . Recycled Matter . | . . . . . . . . Retrieved Matter . | . . . . . . . . Retrieved Components 3 | . . . . 3 . . . Parts Scanalyzed . | . . . . . . . . Part Schematics Acquired . | . . . . . . . . Parts Damaged . | . . . . . . . . Bothacking | -11 -10 -9 -9 -8 -7 -6 -5 ------------ Run | Yrd Mat Mat Min Mat Fac Fac Fac Used RIF Installer . | . . . . . . . . Robots Hacked . | . . . . . . . . Non-combat . | . . . . . . . . Combat . | . . . . . . . . Robot Hacks Applied . | . . . . . . . . Relay Couplers Released . | . . . . . . . . Fabnet Peak Effective % . | . . . . . . . . Robots Rewired . | . . . . . . . . Allies Hacked . | . . . . . . . . Hacks Repelled . | . . . . . . . . Allies | -11 -10 -9 -9 -8 -7 -6 -5 -------- Run | Yrd Mat Mat Min Mat Fac Fac Fac Total Allies . | . . . . . . . . Largest Group . | . . . . . . . . Highest-Rated Group . | . . . . . . . . Highest-Rated Ally . | . . . . . . . . Total Orders . | . . . . . . . . Ally Attacks . | . . . . . . . . Total Damage . | . . . . . . . . Kills . | . . . . . . . . Allies Corrupted . | . . . . . . . . Allies Melted . | . . . . . . . . Intel | -11 -10 -9 -9 -8 -7 -6 -5 ------- Run | Yrd Mat Mat Min Mat Fac Fac Fac Active Infowar (turns) 2350 | 20 1428 902 . . . . . Seismic 2350 | 20 1428 902 . . . . . Robot Analysis Total . | . . . . . . . . Derelict Logs Recovered 1 | . . . 1 . . . . Drone Launches . | . . . . . . . . Drone Recoveries . | . . . . . . . . Exploration | -11 -10 -9 -9 -8 -7 -6 -5 ------------- Run | Yrd Mat Mat Min Mat Fac Fac Fac Turns Passed 10041 | 126 1456 2444 157 2495 935 2164 264 Spaces Moved 4168 | 54 763 637 122 1141 466 900 85 Core 166 | 27 . 132 . . 6 . 1 Treads 3193 | 27 763 408 . 578 433 900 84 Legs 211 | . . . . 184 27 . . Wheels . | . . . . . . . . Hover 598 | . . 97 122 379 . . . Flight . | . . . . . . . . Fastest Speed 50 | 50 160 108 108 100 160 160 240 Average Speed 186 | 158 160 324 108 154 174 162 254 Slowest Speed 1500 | 200 160 950 108 305 1150 240 1500 Overloaded Moves . | . . . . . . . . Propulsion Burnouts . | . . . . . . . . Robots Hopped . | . . . . . . . . Potential Cave-ins . | . . . . . . . . Cave-ins Triggered . | . . . . . . . . Exploration Rate (%) 39 | 4 98 55 42 72 14 25 4 Regions Visited 7 Branch Regions 1 Pre-discovered Areas . | . . . . . . . . Known Exits Taken . | . . . . . . . . Unknown Exits Taken 7 | 1 1 1 1 1 1 1 . Scrap Searched . | . . . . . . . . Spaces Dug . | . . . . . . . . Terrain Destroyed 158 | . . 12 . 26 53 67 . Melee . | . . . . . . . . Projectile 15 | . . . . 15 . . . AOE 143 | . . 12 . 11 53 67 . Terrain Rammed . | . . . . . . . . Walls Destroyed . | . . . . . . . . Machines Disabled . | . . . . . . . . Actions | -11 -10 -9 -9 -8 -7 -6 -5 --------- Run | Yrd Mat Mat Min Mat Fac Fac Fac Total 5438 | 74 883 783 137 1529 539 1393 100 Wait 529 | . 30 . 9 120 20 349 1 Move 4161 | 53 762 636 121 1140 465 899 85 Hop . | . . . . . . . . Pick Up 72 | 5 11 8 . 32 4 11 1 Fast Attach 44 | 7 5 9 . 15 7 1 . Attach 40 | . 1 9 1 16 1 8 4 Detach 1 | . . . . . . 1 . Swap 30 | 1 4 8 . 7 4 6 . Drop 54 | . 11 3 1 17 12 10 . Fire 483 | 8 59 108 5 180 25 91 7 Melee . | . . . . . . . . Ram 2 | . . 1 . . . . 1 Kick . | . . . . . . . . Crush 22 | . . 1 . 2 1 17 1 Escape Stasis . | . . . . . . . . Rewire . | . . . . . . . . Trap . | . . . . . . . . Miscellaneous . | . . . . . . . . Route ------- -11/Scrapyard -10/Materials (discovered 5 exits: *Mat x3 / [*Min x2]) -9/Materials (discovered 5 exits: *Mat x2 / [*Min x2] / [*Sto]) -9/Mines -8/Materials (discovered 2 exits: *Fac x2) -7/Factory -6/Factory -5/Factory History --------- Turn | Location | Event 26 | -11/Scrapyard | Discovered new exit (range 15) 127 | -11/Scrapyard | Entered Materials 315 | -10/Materials | Build established: Mutant 316 | -10/Materials | Discovered new exit (range 14) 376 | -10/Materials | Discovered new exit (range 16) 664 | -10/Materials | Discovered new exit (range 12) 1034 | -10/Materials | Discovered new exit (range 10) 1180 | -10/Materials | Discovered new exit (range 12) 1502 | -10/Materials | Repaired Seismic Detector 1583 | -10/Materials | Entered another Materials area 1583 | -9/Materials | Evolved 2 slots: Propulsion x2 1629 | -9/Materials | Discovered new exit (range 8) 1897 | -9/Materials | Discovered new exit (range 11) 2025 | -9/Materials | Discovered new exit (range 15) 2084 | -9/Materials | Build established: Scavenger-Mutant 2394 | -9/Materials | Lost 6 parts (1p3n2w) 2397 | -9/Materials | Destroyed 7 combat bots 2628 | -9/Materials | Core integrity fell below 50% 2659 | -9/Materials | Core integrity fell below 20% 2668 | -9/Materials | Build established: Mutant 3243 | -9/Materials | Discovered new exit (range 15) 3925 | -9/Materials | Discovered new exit (range 16) 4027 | -9/Materials | Entered Mines 4125 | -9/Mines | Learned Materials terminal intel 4160 | -9/Mines | Discovered new exit (range 9) 4184 | -9/Mines | Entered Materials 4184 | -8/Materials | Evolved 2 slots: Propulsion x2 4185 | -8/Materials | Loaded intel: 12 terminal locations 4386 | -8/Materials | Garrison activated, responded to threat 4491 | -8/Materials | Lost 3 parts (2n1w) 5296 | -8/Materials | Build established: Scavenger-Mutant 5311 | -8/Materials | Discovered new exit (range 15) 5619 | -8/Materials | Core integrity fell below 50% 5682 | -8/Materials | Lost 4 parts (3n1w) 5938 | -8/Materials | Build established: Mutant 6151 | -8/Materials | Discovered new exit (range 15) 6262 | -8/Materials | Lost 4 parts (1p2n1u) 6609 | -8/Materials | Build established: Scavenger-Mutant 6679 | -8/Materials | Entered Factory 6679 | -7/Factory | Evolved 2 slots: Power x1, Utility x1 7024 | -7/Factory | Build established: Mutant 7046 | -7/Factory | Allied Derelicts emerged from ambush trap array 7107 | -7/Factory | Murdered 3 allies 7230 | -7/Factory | Discovered new exit (range 9) 7298 | -7/Factory | Garrison activated, responded to threat 7614 | -7/Factory | Entered another Factory area 7614 | -6/Factory | Evolved 2 slots: Utility x1, Weapon x1 7933 | -6/Factory | Build established: Tank 7992 | -6/Factory | Spotted B-75 Beast 8906 | -6/Factory | Garrison activated, responded to threat 9672 | -6/Factory | Discovered new exit (range 4) 9778 | -6/Factory | Entered another Factory area 9778 | -5/Factory | Evolved 2 slots: Utility x2 9993 | -5/Factory | Garrison activated, responded to threat 10042 | -5/Factory | Self-destructed Last Messages --------------- 09994_ S-27 Virus emerges from the garrison. 09996_ G-50 Soldier knocked back. 09999_ Slammed into G-50 Soldier. 10003_ Med. Treads destroyed. 10003_ G-50 Soldier knocked back. 10004_ Flak Cannon destroyed. 10012_ G-50 Soldier destroyed. 10012_ Flak Cannon destroyed. 10014_ Acquired 32 matter. 10014_ Flak Cannon destroyed. 10017_ Imp. Medium Armor Plating destroyed. 10023_ Hpw. Tractor Beam destroyed. 10024_ Imp. Power Shielding destroyed. 10025_ L-41 Fighter knocked back. 10028_ Slammed into L-41 Fighter. 10036_ Adv. Assault Cannon destroyed. 10038_ Critical hit (Burn: +37). 10038_ R-10 Processor collects Carbon-fiber Leg. 10039_ Adv. Assault Cannon destroyed. 10039_ F-cell Engine destroyed. Map ----- +----------------------------------------------------+ | ?? ###########??????????????? | | ?? # #???????????? | | ?? # #???????????? | | ??### ############ # #???????????? | | ????#????????????# # #???????????? | | ?????????????????# # """ """ #???????????? | | ?????????????????+ # """ """ #???????????? | | ?????????????????# + """ """ #???????????? | | ?????????????????# # #???????????? | | ?????????????????# # """ """ #???????????? | | ?????????????????##### # """ """ #???????????? | | ?????????????????????# # """ """ #???????????? | | ?????????????????????# # #???????????? | | ????????????????######+##############???????????? | | ????????????????# #??????????????????? | | ????????????????# ]! """ #??????????????????? | | ????????????????# ! """ #??????????????????? | | ????????????????# """ #??????????????????? | | ????????+######## #??????????????????? | | ?# + """ #??????????????????? | | ?# ^ # """ #??????????????????? | | ?# """ ]] # """ #??????????????????? | | ???????""" ][ + " " ss #??????????????????? | | ???????""" ?# "G" s #######????????????? | | ??????? ??# " R g/ g #????????????? | | ?????? ??+ @l #??????????????????? | | ?????########???#######;######??????????????????? | | ????????????????????? ??????????????????????? | | ????????????????????# #?????????????????????? | | ????????????????????# #?????????????????????? | | ????????????????????# +?????????????????????? | | ???????????????????? # ????????????????????? | | ??????????????????? # ???????????????????? | | ?????????????????? #?##??????????????????? | | ?????????????????? #?????????????????????? | | ????????????????? ?????????????????????? | | ???????????????? ?????????????????????? | | ???????????????? ?????????????????????? | | ???????????????? ##????????????????????? | | ???????????????? ###+####?????????????????????? | | ????????????????????????????????????????????????? | | ????????????????????????????????????????????????? | | ????????????????????????????????????????????????? | | ????????????????????????????????????????????????? | | ????????????????????????????????????????????????? | | ????????????????????????????????????????????????? | | ????????????????????????????????????????????????? | | ????????????????????????????????????????????????? | | ????????????????????????????????????????????????? | | ????????????????????????????????????????????????? | +----------------------------------------------------+ Best States ------------- Heat Dissipation 40 Energy Generation 33 Energy Capacity 900 Matter Stores 300 Matter Capacity 300 Sight Range 16 Terrain Scan Density 10 Armor Coverage 225 Power Shielding 66 Utility Shielding 66 Weapon Shielding 66 Evasion (%) 55 Recoil Reduction 6 Item Schematics ----------------- None Robot Schematics ------------------ None Fabricated ------------ Nothing Repaired ---------- Seismic Detector | 30% | -10/Materials Studied --------- Lgt. Treads | -8/Materials | Hacked Imp. Treads | -8/Materials | Hacked Alien Tech Used ----------------- None Achievements -------------- None Challenges ------------ None Game ------ Seed FlyingFissionTrident Manual? 0 Play Time 00:45:23 Cumulative 61.0 hours Start 2026.06.30 @ 01:53:25 End 2026.06.30 @ 04:04:54 Sessions 3 Manual Loads 0 Difficulty Rogue Special Mode None Game No. 130 Rogue 130 Adventurer 0 Explorer 0 Win Type - Total 0 Types 0/0/0/0/0/0/0/0/0/0 Lore% 30 Gallery% 29 Achievement% 25 Wizard Run 0 Options --------- Layout 0 ASCII 0 Keyboard 0 Movement Mouse Keybinds 0 Fullscreen 2 Font 24/Smallcaps Map View 76x50 Zoom Use 0% Tactical HUD 1 Map Filters NONE Filters NONE Steam 1 RUN: f2644e96-4a53-4665-88d2-ea38506ccaa8